bitfinex/quotes_BTCUSD_20251009
["timestamp","ask_amount","ask_price","bid_price","bid_amount"]
[1759985758705,0.18119219,122210.0,122200.0,0.53287008]
[1759985758914,0.18119219,122210.0,122200.0,0.61799008]
[1759985760187,0.18119219,122210.0,122200.0,0.38663008]
[1759985760446,0.18119219,122210.0,122200.0,0.61795008]
[1759985761278,0.16366612,122200.0,122190.0,0.17177865]
[1759985761492,0.21458612,122200.0,122190.0,0.94197261]
[1759985761701,0.02707,122200.0,122190.0,0.95755261]
[1759985761927,0.19073612,122200.0,122190.0,0.95755261]
[1759985763643,0.19073612,122200.0,122190.0,0.72623261]
[1759985763846,0.17620219,122210.0,122190.0,0.75827143]
[1759985764045,0.17620219,122210.0,122200.0,0.23942]
[1759985764250,0.20005219,122210.0,122200.0,0.23942]
[1759985764434,0.21508219,122210.0,122200.0,0.23942]
[1759985764827,0.29507899,122210.0,122200.0,0.23942]
[1759985765011,0.29507899,122210.0,122200.0,0.0081]
[1759985765211,0.29507899,122210.0,122190.0,0.45475396]
[1759985765212,0.16366612,122200.0,122190.0,0.45475396]
[1759985765444,0.21458612,122200.0,122190.0,0.77115396]
[1759985765681,0.63896946,122200.0,122190.0,0.39952206]
[1759985765892,0.63896946,122200.0,122190.0,0.3164]
[1759985766098,0.21458612,122200.0,122190.0,0.08512]
[1759985766303,0.21458612,122200.0,122190.0,0.31644]
[1759985766917,0.16367951,122190.0,122180.0,0.38237519]
[1759985767129,0.21575951,122190.0,122180.0,0.40097535]
[1759985768233,0.19208951,122190.0,122180.0,0.59118826]
[1759985768652,0.21575951,122190.0,122180.0,0.59218826]
[1759985769039,0.21575951,122190.0,122180.0,0.42849535]
[1759985769264,0.21575951,122190.0,122180.0,0.17065535]
[1759985769446,0.21575951,122190.0,122180.0,0.40201535]
[1759985769609,0.21575951,122190.0,122180.0,0.40301535]
[1759985770654,0.21575951,122190.0,122180.0,0.56670826]
[1759985770857,0.19208951,122190.0,122180.0,0.59318826]
[1759985771065,0.16367951,122190.0,122180.0,0.59318826]
[1759985771461,0.18010951,122190.0,122180.0,0.59318826]
[1759985772079,0.18010951,122190.0,122180.0,0.19817535]
[1759985772366,0.19208951,122190.0,122180.0,0.42949535]
[1759985772566,0.23369368,122190.0,122180.0,0.42949535]
[1759985773359,0.25736368,122190.0,122180.0,0.42949535]
[1759985773581,0.25736368,122190.0,122180.0,0.41330535]
[1759985775176,0.21575951,122190.0,122180.0,0.57699826]
[1759985775383,0.19208951,122190.0,122180.0,0.59318826]
[1759985775827,0.21575951,122190.0,122180.0,0.42949535]
[1759985776161,0.21575951,122190.0,122180.0,0.41330535]
[1759985776365,0.21575951,122190.0,122180.0,0.41356135]
[1759985776735,0.22633341,122190.0,122180.0,0.41356135]
[1759985777741,0.21575951,122190.0,122180.0,0.57725426]
[1759985778193,0.62466557,122200.0,122180.0,0.57725426]
[1759985778194,0.20028223,122200.0,122180.0,0.61627426]
[1759985778398,0.17570612,122200.0,122190.0,0.23128]
[1759985778606,0.19937612,122200.0,122190.0,0.23128]
[1759985778810,0.21580612,122200.0,122190.0,0.23128]
[1759985779019,0.21580612,122200.0,122190.0,0.41114951]
[1759985779468,0.21580612,122200.0,122190.0,0.24747]
[1759985781021,0.21580612,122200.0,122190.0,0.23128]
[1759985781977,0.21580612,122200.0,122190.0,0.39495951]
[1759985782221,0.16366612,122200.0,122190.0,0.27034]
[1759985782426,0.19207612,122200.0,122190.0,0.24747]
[1759985782638,0.21574612,122200.0,122190.0,0.24747]
[1759985782855,0.21574612,122200.0,122190.0,0.23128]
[1759985783795,0.19207612,122200.0,122190.0,0.17986951]
[1759985784007,0.16366612,122200.0,122190.0,0.94148491]
[1759985784233,0.16366612,122200.0,122190.0,0.12218206]
[1759985784457,0.16366612,122200.0,122190.0,0.43204001]
[1759985784681,0.18009612,122200.0,122190.0,0.41567206]
[1759985784921,0.16367951,122190.0,122180.0,0.35255929]
[1759985785136,0.19208951,122190.0,122180.0,0.74179135]
[1759985785335,0.21575951,122190.0,122180.0,0.74179135]
[1759985785573,0.21575951,122190.0,122180.0,0.90548426]
[1759985785783,0.21575951,122190.0,122180.0,0.08479135]
[1759985785992,0.21575951,122190.0,122180.0,0.40127135]
[1759985786213,0.21575951,122190.0,122180.0,0.08479135]
[1759985786438,0.28595087,122190.0,122180.0,0.40427135]
[1759985786881,0.21575951,122190.0,122180.0,0.40427135]
[1759985791746,0.21575951,122190.0,122180.0,0.40423135]
[1759985792317,0.21575951,122190.0,122180.0,0.08779135]
[1759985792703,0.21575951,122190.0,122180.0,0.40423135]
[1759985793696,0.21575951,122190.0,122180.0,0.56792426]
[1759985793990,0.21575951,122190.0,122180.0,0.40423135]
[1759985794224,0.28674224,122190.0,122180.0,0.4847622]
[1759985794725,0.28674224,122190.0,122180.0,0.32106929]
[1759985795350,0.21575951,122190.0,122180.0,0.32106929]
[1759985799336,0.21575951,122190.0,122180.0,0.4847222]
[1759985799629,0.16367951,122190.0,122180.0,0.93736595]
[1759985800323,0.16367951,122190.0,122180.0,0.91255595]
[1759985800557,0.16367951,122190.0,122180.0,0.59413426]
[1759985800758,0.16367951,122190.0,122180.0,0.91255595]
[1759985801589,0.16367951,122190.0,122180.0,0.59413426]
[1759985802009,0.17949951,122190.0,122180.0,0.59413426]
[1759985804838,0.16367951,122190.0,122180.0,0.59413426]
[1759985805071,0.17892951,122190.0,122180.0,0.59413426]
[1759985805244,0.16367951,122190.0,122180.0,0.59413426]
[1759985805862,0.17892951,122190.0,122180.0,0.59413426]
[1759985807150,0.16367951,122190.0,122180.0,0.59413426]
[1759985807618,0.17892951,122190.0,122180.0,0.59413426]
[1759985809440,0.19079951,122190.0,122180.0,0.59413426]
[1759985810458,0.19079951,122190.0,122180.0,0.59405426]
[1759985812066,0.19079951,122190.0,122180.0,0.36289426]
[1759985812358,0.19079951,122190.0,122180.0,0.59405426]
[1759985813862,0.21380951,122190.0,122180.0,0.11408135]
[1759985814087,0.60547662,122190.0,122180.0,0.08779135]
[1759985814271,0.60547662,122190.0,122180.0,0.08978929]
[1759985814664,0.63005531,122190.0,122180.0,0.32102929]
[1759985816113,0.63005531,122190.0,122180.0,0.00466929]
[1759985816263,0.63005531,122190.0,122180.0,0.32102929]
[1759985817163,0.63005531,122190.0,122180.0,0.31902929]
[1759985817354,0.63005531,122190.0,122180.0,0.00166929]
[1759985817565,0.948477,122190.0,122180.0,0.23662929]
[1759985817774,0.63005531,122190.0,122180.0,0.23662929]
[1759985819826,0.63005531,122190.0,122180.0,0.31798929]
[1759985823102,0.63005531,122190.0,122180.0,0.00166929]
[1759985823320,0.63005531,122190.0,122180.0,0.31798929]
[1759985823768,0.55680989,122190.0,122180.0,0.31798929]
[1759985824585,0.55780989,122190.0,122180.0,0.08678929]
[1759985824741,0.55780989,122190.0,122180.0,0.31798929]
[1759985825152,0.55980989,122190.0,122180.0,0.31798929]
[1759985829054,0.55980989,122190.0,122180.0,0.08678929]
[1759985829279,0.55980989,122190.0,122180.0,0.31794929]
[1759985829845,0.63980669,122190.0,122180.0,0.31794929]
[1759985830675,0.55980989,122190.0,122180.0,0.31794929]
[1759985835011,0.55980989,122190.0,122180.0,0.08678929]
[1759985835232,0.55980989,122190.0,122180.0,0.31794929]
[1759985838632,0.55980989,122190.0,122180.0,0.08678929]
[1759985838954,0.55980989,122190.0,122180.0,0.31790929]
[1759985840999,0.55980989,122190.0,122180.0,0.23278929]
[1759985841139,0.55980989,122190.0,122180.0,0.31790929]
[1759985844194,0.57515849,122190.0,122180.0,0.31790929]
[1759985844948,0.65515529,122190.0,122180.0,0.31790929]
[1759985847169,0.2567368,122190.0,122180.0,0.50336304]
[1759985847386,0.16667951,122190.0,122180.0,0.74481304]
[1759985847615,0.16667951,122190.0,122180.0,0.42639135]
[1759985847616,0.18183951,122190.0,122180.0,0.42639135]
[1759985848010,0.21662951,122190.0,122180.0,0.42639135]
[1759985848264,0.21662951,122190.0,122180.0,0.59008426]
[1759985850079,0.21662951,122190.0,122180.0,0.42639135]
[1759985852243,0.19361951,122190.0,122180.0,0.59008426]
[1759985852558,0.16667951,122190.0,122180.0,0.55859616]
[1759985852700,0.21662951,122190.0,122180.0,0.62023616]
[1759985852895,0.21662951,122190.0,122180.0,0.60520616]
[1759985853557,0.68284767,122190.0,122180.0,0.08479135]
[1759985853760,0.68284767,122190.0,122180.0,0.40035135]
[1759985854230,0.68284767,122190.0,122180.0,0.31790929]
[1759985854952,0.21662951,122190.0,122180.0,0.31790929]
[1759985856007,0.21662951,122190.0,122180.0,0.08678929]
[1759985856225,0.21662951,122190.0,122180.0,0.31790929]
[1759985856434,0.21662951,122190.0,122180.0,0.23278929]
[1759985856782,0.64116244,122190.0,122180.0,0.31790929]
[1759985857034,0.72115924,122190.0,122180.0,0.31790929]
[1759985857214,0.72115924,122190.0,122180.0,0.23278929]
[1759985857457,0.72115924,122190.0,122180.0,0.31790929]
[1759985858481,0.72115924,122190.0,122180.0,0.00166929]
[1759985858725,0.72115924,122190.0,122180.0,0.31790929]
[1759985861512,0.64116244,122190.0,122180.0,0.31790929]
[1759985864004,0.64116244,122190.0,122180.0,0.00166929]
[1759985864231,0.64116244,122190.0,122180.0,0.31790929]
[1759985864846,0.21662951,122190.0,122180.0,0.31790929]
[1759985878888,0.21662951,122190.0,122180.0,0.00166929]
[1759985879089,0.72115924,122190.0,122180.0,0.31790929]
[1759985879812,0.71615924,122190.0,122180.0,0.31790929]
[1759985880544,0.63616244,122190.0,122180.0,0.31790929]
[1759985881184,0.63616244,122190.0,122180.0,0.00166929]
[1759985881348,0.99918511,122190.0,122180.0,0.25686929]
[1759985881740,1.02376521,122190.0,122180.0,0.25686929]
[1759985882255,1.02376521,122190.0,122180.0,0.21934929]
[1759985882459,1.10376201,122190.0,122180.0,0.21934929]
[1759985882796,1.02376521,122190.0,122180.0,0.21934929]
[1759985883698,1.02376521,122190.0,122180.0,0.00166929]
[1759985883904,1.02376521,122190.0,122180.0,0.23278929]
[1759985885581,1.02376521,122190.0,122180.0,0.00166929]
[1759985885788,1.02376521,122190.0,122180.0,0.23294929]
[1759985886015,1.10376201,122190.0,122180.0,0.23294929]
[1759985886644,1.10376201,122190.0,122180.0,0.00166929]
[1759985886854,1.10376201,122190.0,122180.0,0.23290929]
[1759985887945,1.10376201,122190.0,122180.0,0.00166929]
[1759985888174,1.10376201,122190.0,122180.0,0.23290929]
[1759985888444,1.08841361,122190.0,122180.0,0.23290929]
[1759985888652,1.10373416,122190.0,122180.0,0.00166929]
[1759985888827,1.10373416,122190.0,122180.0,0.23290929]
[1759985890867,1.10373416,122190.0,122180.0,0.00166929]
[1759985891075,1.18685622,122190.0,122180.0,0.23290929]
[1759985891753,1.1868525,122190.0,122180.0,0.23290929]
[1759985892174,1.18683664,122190.0,122180.0,0.23290929]
[1759985892996,1.18683664,122190.0,122180.0,0.00166929]
[1759985893217,1.18683664,122190.0,122180.0,0.23286929]
[1759985893659,1.1868356,122190.0,122180.0,0.23286929]
[1759985894183,1.1868356,122190.0,122180.0,0.00166929]
[1759985896895,1.1068388,122190.0,122180.0,0.00166929]
[1759985897132,1.09918143,122190.0,122180.0,0.23286929]
[1759985898166,1.1068382,122190.0,122180.0,0.23286929]
[1759985900691,1.1068382,122190.0,122180.0,0.00166929]
[1759985900920,1.1068382,122190.0,122180.0,0.23282929]
[1759985902096,1.186835,122190.0,122180.0,0.23282929]
[1759985902542,1.02371614,122190.0,122180.0,0.00166929]
[1759985902775,1.01605937,122190.0,122180.0,0.23282929]
[1759985905136,1.023721,122190.0,122180.0,0.23282929]
[1759985906146,1.023721,122190.0,122180.0,0.00166929]
[1759985906283,1.023721,122190.0,122180.0,0.23282929]
[1759985906482,1.1037178,122190.0,122180.0,0.23282929]
[1759985909420,1.1037178,122190.0,122180.0,0.00166929]
[1759985911348,1.023721,122190.0,122180.0,0.00166929]
[1759985913905,1.23623431,122190.0,122180.0,0.00166929]
[1759985917280,0.91771119,122190.0,122180.0,0.00166929]
[1759985922474,0.59918807,122190.0,122180.0,0.00166929]
[1759985922797,0.91771119,122190.0,122180.0,0.00166929]
[1759985924162,0.99770799,122190.0,122180.0,0.00166929]
[1759985927091,1.31626227,122190.0,122180.0,0.23282929]
[1759985932924,1.31626227,122190.0,122180.0,0.00166929]
[1759985933146,1.31626227,122190.0,122180.0,0.23282929]
[1759985940221,1.31626227,122190.0,122180.0,0.00166929]
[1759985940438,1.31626227,122190.0,122180.0,0.07942929]
[1759985942469,1.31626227,122190.0,122180.0,0.00166929]
[1759985942679,1.31626227,122190.0,122180.0,0.14274929]
[1759985946011,1.31626227,122190.0,122180.0,0.00166929]
[1759985946241,1.31626227,122190.0,122180.0,0.19430929]
[1759985946857,1.23626547,122190.0,122180.0,0.00166929]
[1759985947069,1.23626547,122190.0,122180.0,0.23278929]
[1759985949481,0.91774235,122190.0,122180.0,0.23278929]
[1759985949732,0.59921923,122190.0,122180.0,0.23278929]
[1759985950004,0.91774235,122190.0,122180.0,0.23278929]
[1759985952248,0.89473273,122190.0,122180.0,0.00166929]
[1759985952434,0.57620961,122190.0,122180.0,0.23278929]
[1759985952667,0.89473273,122190.0,122180.0,0.23278929]
[1759985952912,0.90240718,122190.0,122180.0,0.23278929]
[1759985953452,0.91008177,122190.0,122180.0,0.23278929]
[1759985954022,0.89473273,122190.0,122180.0,0.23278929]
[1759985956263,0.9100832,122190.0,122180.0,0.23278929]
[1759985957051,0.9177569,122190.0,122180.0,0.23278929]
[1759985957256,0.91775611,122190.0,122180.0,0.23278929]
[1759985958329,0.91775606,122190.0,122180.0,0.23278929]
[1759985959701,0.91775355,122190.0,122180.0,0.23278929]
[1759985960567,0.91775355,122190.0,122180.0,0.31790929]
[1759985961888,0.59923043,122190.0,122180.0,0.08678929]
[1759985962132,0.91775355,122190.0,122180.0,0.31790929]
[1759985963081,0.91775355,122190.0,122180.0,0.00166929]
[1759985963312,0.91775355,122190.0,122180.0,0.31790929]
[1759985964233,0.91775355,122190.0,122180.0,0.00166929]
[1759985964653,0.91775355,122190.0,122180.0,0.31790929]
[1759985965371,0.91007916,122190.0,122180.0,0.00166929]
[1759985965570,0.91007916,122190.0,122180.0,0.31790929]
[1759985967572,0.91007916,122190.0,122180.0,0.08678929]
[1759985967776,0.91007916,122190.0,122180.0,0.31790929]
[1759985968211,0.00050947,122210.0,122180.0,1.56964362]
[1759985968469,0.00050947,122210.0,122200.0,1.48938738]
[1759985968681,0.00050947,122210.0,122200.0,1.91310944]
[1759985968895,0.00050947,122210.0,122200.0,2.8962688]
[1759985969129,0.00050947,122210.0,122200.0,2.197625]
[1759985970440,0.00050947,122210.0,122200.0,2.200625]
[1759985971089,0.00050947,122210.0,122200.0,2.208625]
[1759985973249,0.00050947,122210.0,122200.0,0.99054374]
[1759985973457,0.00050947,122210.0,122200.0,1.85986998]
[1759985973868,0.00050947,122210.0,122200.0,1.89002188]
[1759985975773,0.00050947,122210.0,122200.0,1.86545632]
[1759985975896,0.00050947,122210.0,122200.0,1.65268051]
[1759985980148,0.00050947,122210.0,122200.0,1.31268051]
[1759985980542,0.00050947,122210.0,122200.0,1.30150051]
[1759985980741,0.05183947,122210.0,122200.0,0.61479818]
[1759985980982,0.02717947,122210.0,122200.0,0.83050818]
[1759985981184,0.02717947,122210.0,122200.0,0.84553818]
[1759985981344,0.02717947,122210.0,122200.0,0.61341818]
[1759985981543,0.00050947,122210.0,122200.0,1.26684861]
[1759985981774,0.00050947,122210.0,122200.0,1.03668861]
[1759985982029,0.00050947,122210.0,122200.0,1.26084861]
[1759985982208,0.00050947,122210.0,122200.0,1.04586861]
[1759985982409,0.00050947,122210.0,122200.0,1.27802861]
[1759985984037,0.00050947,122210.0,122200.0,1.26684861]
[1759985985486,0.00050947,122210.0,122200.0,1.26680861]
[1759985986102,0.00050947,122210.0,122200.0,1.03468861]
[1759985986303,0.00050947,122210.0,122200.0,1.26676861]
[1759985986548,0.00050947,122210.0,122200.0,1.27794861]
[1759985986966,0.00050947,122210.0,122200.0,1.04586861]
[1759985987205,0.00050947,122210.0,122200.0,1.27794861]
[1759985987611,0.00050947,122210.0,122200.0,1.26676861]
[1759985988089,0.00050947,122210.0,122200.0,1.04587861]
[1759985988349,0.00050947,122210.0,122200.0,1.27791861]
[1759985988816,0.00050947,122210.0,122200.0,1.04587861]
[1759985989018,0.00050947,122210.0,122200.0,1.27791861]
[1759985990109,0.00050947,122210.0,122200.0,1.04587861]
[1759985990325,0.00050947,122210.0,122200.0,1.27787861]
[1759985992689,0.00050947,122210.0,122200.0,1.04587861]
[1759985992892,0.00050947,122210.0,122200.0,1.27787861]
[1759985994072,0.00050947,122210.0,122200.0,1.04587861]
[1759985994254,0.05253947,122210.0,122200.0,0.59538818]
[1759985994461,0.05253947,122210.0,122200.0,0.82734818]
[1759985995098,0.05253947,122210.0,122200.0,0.59538818]
[1759985995299,0.05253947,122210.0,122200.0,1.26791861]
[1759985995501,0.02775947,122210.0,122200.0,1.26791861]
[1759985996140,0.00050947,122210.0,122200.0,1.04714861]
[1759985996353,0.00050947,122210.0,122200.0,1.27906861]
[1759985996759,0.00050947,122210.0,122200.0,1.04714861]
[1759985997215,0.00050947,122210.0,122200.0,1.27906861]
[1759985997850,0.00050947,122210.0,122200.0,1.03595861]
[1759985998049,0.00050947,122210.0,122200.0,1.26787861]
[1759985998264,0.19903745,122210.0,122200.0,1.26787861]
[1759985998463,0.03538473,122210.0,122200.0,1.26787861]
[1759985999889,0.00813473,122210.0,122200.0,1.03595861]
[1759986000091,0.00813473,122210.0,122200.0,1.26787861]
[1759986000294,0.17178745,122210.0,122200.0,1.26787861]
[1759986000707,0.00813473,122210.0,122200.0,1.26787861]
[1759986001944,0.17178745,122210.0,122200.0,1.26787861]
[1759986003282,0.17178745,122210.0,122200.0,1.03595861]
[1759986003283,0.00813473,122210.0,122200.0,1.03595861]
[1759986003471,0.00050947,122210.0,122200.0,1.27898861]
[1759986004012,0.16416219,122210.0,122200.0,1.27898861]
[1759986004233,0.17178745,122210.0,122200.0,1.26779861]
[1759986004450,0.00050947,122210.0,122200.0,1.26779861]
[1759986004673,0.16416219,122210.0,122200.0,1.26779861]
[1759986006197,0.16416219,122210.0,122200.0,1.03595861]
[1759986006408,0.00050947,122210.0,122200.0,1.27898861]
[1759986006614,0.16416219,122210.0,122200.0,1.27898861]
[1759986006957,0.00050947,122210.0,122200.0,1.27898861]
[1759986007180,0.16416219,122210.0,122200.0,1.27898861]
[1759986007587,0.00050947,122210.0,122200.0,1.27898861]
[1759986007968,0.00050947,122210.0,122200.0,1.04714861]
[1759986008230,0.16416219,122210.0,122200.0,1.27894861]
[1759986008409,0.00050947,122210.0,122200.0,1.04714861]
[1759986008630,0.00050947,122210.0,122200.0,1.27894861]
[1759986010039,0.00050947,122210.0,122200.0,1.50157094]
[1759986010462,0.00050947,122210.0,122200.0,1.30918051]
[1759986011368,0.00050947,122210.0,122200.0,1.07730051]
[1759986011538,0.00050947,122210.0,122200.0,1.30918051]
[1759986012313,0.00050947,122210.0,122200.0,0.73670051]
[1759986012515,0.16416219,122210.0,122200.0,0.57303439]
[1759986012757,0.18065219,122210.0,122200.0,0.56184439]
[1759986012980,0.18065219,122210.0,122200.0,1.01231861]
[1759986013377,0.18065219,122210.0,122200.0,0.58804818]
[1759986014595,0.18065219,122210.0,122200.0,0.35620818]
[1759986014753,0.16416219,122210.0,122200.0,0.36739818]
[1759986014961,0.16416219,122210.0,122200.0,0.59923818]
[1759986015184,0.16416219,122210.0,122200.0,1.02350861]
[1759986015989,0.18065219,122210.0,122200.0,1.01231861]
[1759986016264,0.18065219,122210.0,122200.0,0.10742206]
[1759986016396,0.19262219,122210.0,122200.0,0.42434206]
[1759986016574,0.21537219,122210.0,122200.0,0.42434206]
[1759986017407,0.19262219,122210.0,122200.0,0.58200818]
[1759986017808,0.19262219,122210.0,122200.0,0.58300818]
[1759986019255,0.19262219,122210.0,122200.0,0.58400818]
[1759986019806,0.19262219,122210.0,122200.0,0.10342206]
[1759986020044,0.21537219,122210.0,122200.0,0.17224206]
[1759986020257,0.21537219,122210.0,122200.0,0.40400206]
[1759986021091,0.21537219,122210.0,122200.0,0.08912]
[1759986021294,0.21537219,122210.0,122200.0,0.33724661]
[1759986021525,0.21537219,122210.0,122200.0,0.32088]
[1759986021701,0.21537219,122210.0,122200.0,0.32092]
[1759986021905,0.16416219,122210.0,122200.0,0.33639]
[1759986022519,0.16416219,122210.0,122200.0,0.26825612]
[1759986022724,0.16416219,122210.0,122200.0,0.50001612]
[1759986023306,0.16416219,122210.0,122200.0,0.27944612]
[1759986023487,0.16416219,122210.0,122200.0,0.51120612]
[1759986023703,0.16416219,122210.0,122200.0,0.33635]
[1759986024121,0.21537219,122210.0,122200.0,0.33635]
[1759986025259,0.19262219,122210.0,122200.0,0.26825612]
[1759986025441,0.19262219,122210.0,122200.0,0.33631]
[1759986026031,0.19262219,122210.0,122200.0,0.10459]
[1759986026234,0.19262219,122210.0,122200.0,0.35267661]
[1759986026235,0.21537219,122210.0,122200.0,0.35267661]
[1759986026443,0.21537219,122210.0,122200.0,0.32084]
[1759986026844,0.21537219,122210.0,122200.0,0.33631]
[1759986027214,0.19262219,122210.0,122200.0,0.33631]
[1759986027869,0.17613219,122210.0,122200.0,0.26825612]
[1759986028049,0.16416219,122210.0,122200.0,0.33627]
[1759986030412,0.16416219,122210.0,122200.0,0.26825612]
[1759986030601,0.16416219,122210.0,122200.0,0.10459]
[1759986030798,0.18065219,122210.0,122200.0,0.35263661]
[1759986030998,0.19262219,122210.0,122200.0,0.33627]
[1759986031204,0.21537219,122210.0,122200.0,0.3208]
[1759986031618,0.19262219,122210.0,122200.0,0.49993612]
[1759986031817,0.16416219,122210.0,122200.0,0.93535655]
[1759986032036,0.00050947,122210.0,122200.0,0.81699051]
[1759986032234,0.00050947,122210.0,122200.0,1.04863051]
[1759986032864,0.00050947,122210.0,122200.0,0.81699051]
[1759986033074,0.00050947,122210.0,122200.0,1.04867051]
[1759986033893,0.00050947,122210.0,122200.0,0.81699051]
[1759986034098,0.00050947,122210.0,122200.0,1.04867051]
[1759986034712,0.00050947,122210.0,122200.0,1.38915051]
[1759986036623,0.00050947,122210.0,122200.0,1.15747051]
[1759986036831,0.00050947,122210.0,122200.0,1.38915051]
[1759986037975,0.00050947,122210.0,122200.0,1.6013404]
[1759986038176,0.00050947,122210.0,122200.0,1.60109987]
[1759986039774,0.00050947,122210.0,122200.0,0.94381987]
[1759986039986,0.16416219,122210.0,122200.0,1.05118971]
[1759986040191,0.16416219,122210.0,122200.0,1.28282971]
[1759986043057,0.16416219,122210.0,122200.0,0.30735955]
[1759986043282,0.17992219,122210.0,122200.0,1.27159971]
[1759986043475,0.16416219,122210.0,122200.0,1.27159971]
[1759986043668,0.16416219,122210.0,122200.0,1.28278971]
[1759986050320,0.00050947,122210.0,122200.0,1.28278971]
[1759986052095,0.16416219,122210.0,122200.0,1.28278971]
[1759986052521,0.16416219,122210.0,122200.0,1.05118971]
[1759986052639,0.16416219,122210.0,122200.0,1.28266971]
[1759986054553,0.00050947,122210.0,122200.0,1.28266971]
[1759986055158,0.00050947,122210.0,122200.0,1.05118971]
[1759986055373,0.00050947,122210.0,122200.0,1.28266971]
[1759986056679,0.16416219,122210.0,122200.0,0.29616955]
[1759986056912,0.2534664,122210.0,122200.0,0.17200153]
[1759986057060,0.57169656,122210.0,122200.0,0.00375947]
[1759986057260,0.57169656,122210.0,122200.0,0.23523947]
[1759986057911,0.58703695,122210.0,122200.0,0.23423947]
[1759986058109,0.58703695,122210.0,122200.0,0.23148]
[1759986058313,0.57169656,122210.0,122200.0,0.23148]
[1759986058485,0.57169656,122210.0,122200.0,0.23248]
[1759986059137,0.57169656,122210.0,122200.0,0.001]
[1759986059495,0.57169656,122210.0,122200.0,0.13904]
[1759986060187,0.57269656,122210.0,122200.0,0.13804]
[1759986060557,0.57369656,122210.0,122200.0,0.13804]
[1759986063999,0.16367951,122190.0,122180.0,0.32883261]
[1759986064209,0.22456527,122190.0,122180.0,0.64351467]
[1759986064431,0.24931527,122190.0,122180.0,0.64351467]
[1759986064659,0.24931527,122190.0,122180.0,0.15495803]
[1759986064888,0.24931527,122190.0,122180.0,0.14885597]
[1759986064889,0.56754543,122190.0,122180.0,0.14885597]
[1759986065129,0.56754543,122190.0,122180.0,0.38037597]
[1759986065355,0.56754543,122190.0,122180.0,0.38337597]
[1759986065603,0.24931527,122190.0,122180.0,0.15185597]
[1759986065817,0.56754543,122190.0,122180.0,0.32130929]
[1759986066053,0.24931527,122190.0,122180.0,0.32130929]
[1759986066550,0.56754543,122190.0,122180.0,0.32230929]
[1759986067603,0.56754543,122190.0,122180.0,0.00566929]
[1759986067815,0.56754543,122190.0,122180.0,0.23718929]
[1759986068664,0.56754543,122190.0,122180.0,0.23418929]
[1759986068871,0.57565526,122190.0,122180.0,0.23418929]
[1759986069084,0.57565526,122190.0,122180.0,0.23318929]
[1759986069416,0.2574251,122190.0,122180.0,0.00166929]
[1759986069641,0.57565526,122190.0,122180.0,0.23322929]
[1759986069818,0.56754543,122190.0,122180.0,0.23322929]
[1759986070022,0.56754543,122190.0,122180.0,0.23422929]
[1759986071974,0.57590218,122190.0,122180.0,0.23422929]
[1759986072198,0.57590218,122190.0,122180.0,0.00266929]
[1759986072427,0.57590218,122190.0,122180.0,0.23418929]
[1759986072657,0.57590218,122190.0,122180.0,0.00266929]
[1759986072925,0.91590218,122190.0,122180.0,0.23418929]
[1759986073202,0.91590218,122190.0,122180.0,0.00266929]
[1759986073435,0.91590218,122190.0,122180.0,0.00166929]
[1759986073436,0.94148306,122190.0,122180.0,0.00166929]
[1759986073667,0.94248306,122190.0,122180.0,0.00166929]
[1759986076241,1.26071322,122190.0,122180.0,0.00166929]
[1759986076481,0.94248306,122190.0,122180.0,0.00166929]
[1759986078585,1.26071322,122190.0,122180.0,0.00166929]
[1759986079262,1.27600122,122190.0,122180.0,0.00166929]
[1759986080148,0.95777106,122190.0,122180.0,0.00166929]
[1759986080435,1.18929106,122190.0,122180.0,0.00166929]
[1759986080899,0.95777106,122190.0,122180.0,0.00166929]
[1759986081122,1.18929106,122190.0,122180.0,0.00166929]
[1759986081348,0.95777106,122190.0,122180.0,0.00166929]
[1759986081785,0.95777378,122190.0,122180.0,0.00166929]
[1759986081972,0.6242529,122190.0,122180.0,0.00166929]
[1759986082187,0.94248306,122190.0,122180.0,0.00166929]
[1759986082421,0.9577763,122190.0,122180.0,0.00166929]
[1759986083114,0.63954614,122190.0,122180.0,0.00166929]
[1759986083333,0.9577763,122190.0,122180.0,0.00166929]
[1759986083780,0.63954614,122190.0,122180.0,0.00166929]
[1759986083940,0.9577763,122190.0,122180.0,0.00166929]
[1759986084775,0.63954614,122190.0,122180.0,0.00166929]
[1759986084983,0.9577763,122190.0,122180.0,0.00166929]
[1759986085731,0.63954614,122190.0,122180.0,0.00166929]
[1759986085892,0.9577763,122190.0,122180.0,0.00166929]
[1759986087258,0.96545322,122190.0,122180.0,0.00166929]
[1759986087850,0.96545689,122190.0,122180.0,0.00166929]
[1759986089242,1.28368705,122190.0,122180.0,0.00166929]
[1759986091518,1.51512705,122190.0,122180.0,0.00166929]
[1759986092747,1.28368705,122190.0,122180.0,0.00166929]
[1759986092926,1.51508705,122190.0,122180.0,0.00166929]
[1759986093751,0.44245471,122190.0,122180.0,0.00166929]
[1759986093923,1.21801366,122190.0,122180.0,0.00166929]
[1759986094136,0.8997835,122190.0,122180.0,0.00166929]
[1759986094749,0.93269181,122190.0,122180.0,0.00166929]
[1759986095836,0.93269972,122190.0,122180.0,0.00166929]
[1759986096087,0.97358806,122190.0,122180.0,0.00166929]
[1759986097860,1.08002692,122190.0,122180.0,0.00166929]
[1759986100329,1.08003131,122190.0,122180.0,0.00166929]
[1759986101006,1.08005591,122190.0,122180.0,0.00166929]
[1759986102628,1.16317797,122190.0,122180.0,0.00166929]
[1759986102972,1.39461797,122190.0,122180.0,0.00166929]
[1759986103646,1.39465797,122190.0,122180.0,0.00166929]
[1759986103823,1.16317797,122190.0,122180.0,0.00166929]
[1759986104056,0.96998895,122190.0,122180.0,0.00166929]
[1759986104264,1.39465797,122190.0,122180.0,0.00166929]
[1759986104709,1.39365797,122190.0,122180.0,0.00166929]
[1759986104916,1.16217797,122190.0,122180.0,0.00166929]
[1759986105102,1.39565797,122190.0,122180.0,0.00166929]
[1759986105363,1.39865797,122190.0,122180.0,0.00166929]
[1759986105581,1.38331748,122190.0,122180.0,0.00166929]
[1759986105820,1.0431671,122190.0,122180.0,0.00166929]
[1759986110255,1.2746071,122190.0,122180.0,0.00166929]
[1759986111555,1.0431671,122190.0,122180.0,0.00166929]
[1759986111952,1.2746071,122190.0,122180.0,0.00166929]
[1759986112163,1.0431671,122190.0,122180.0,0.00166929]
[1759986112714,1.1231639,122190.0,122180.0,0.00166929]
[1759986113539,1.1231596,122190.0,122180.0,0.00166929]
[1759986117538,1.1231596,122190.0,122180.0,0.00141329]
[1759986117752,1.3545996,122190.0,122180.0,0.00141329]
[1759986118712,1.35460049,122190.0,122180.0,0.00141329]
[1759986120770,1.12316049,122190.0,122180.0,0.00141329]
[1759986120985,1.35456049,122190.0,122180.0,0.00141329]
[1759986121203,1.11549025,122190.0,122180.0,0.00141329]
[1759986121401,1.35455877,122190.0,122180.0,0.00141329]
[1759986122392,1.35455935,122190.0,122180.0,0.00141329]
[1759986129221,1.12315935,122190.0,122180.0,0.00141329]
[1759986129428,1.35451935,122190.0,122180.0,0.00141329]
[1759986129993,1.12315935,122190.0,122180.0,0.00141329]
[1759986130212,1.35451935,122190.0,122180.0,0.00141329]
[1759986130595,1.20628141,122190.0,122180.0,0.00141329]